bitfinex/quotes_ETHUSD_20250914
["timestamp","ask_amount","ask_price","bid_price","bid_amount"]
[1757850628346,1e-08,4636.3,4636.2,41.20591562]
[1757850628855,1e-08,4636.3,4636.2,11.20591562]
[1757850629071,1e-08,4636.3,4636.2,10.74211562]
[1757850629455,1e-08,4636.3,4636.2,11.20591562]
[1757850630680,1e-08,4637.3,4637.2,2.94847373]
[1757850630880,1e-08,4637.3,4637.2,11.81188583]
[1757850631086,1e-08,4637.3,4637.2,12.0804211]
[1757850631391,1e-08,4637.3,4637.2,13.0292211]
[1757850632092,1e-08,4637.3,4637.2,12.5543211]
[1757850632258,0.30620001,4637.3,4637.2,12.2642211]
[1757850632458,0.78010001,4637.3,4637.2,12.2642211]
[1757850633288,0.30620001,4637.3,4637.2,12.2642211]
[1757850633852,0.78010001,4637.3,4637.2,8.6722211]
[1757850634092,1.25800001,4637.3,4637.2,12.2642211]
[1757850634660,1.25800001,4637.3,4637.2,11.7903211]
[1757850636685,0.78010001,4637.3,4637.2,11.7903211]
[1757850638629,1.25800001,4637.3,4637.2,7.9973211]
[1757850638834,1.25800001,4637.3,4637.2,7.40247373]
[1757850638997,1.25800001,4637.3,4637.2,5.246]
[1757850639311,1.25800001,4637.3,4637.2,10.40247373]
[1757850640686,1.25800001,4637.3,4637.2,10.50967373]
[1757850642585,0.78010001,4637.3,4637.2,10.50967373]
[1757850642914,0.30620001,4637.3,4637.2,10.50967373]
[1757850643115,1e-08,4637.3,4637.2,10.50967373]
[1757850643536,0.30620001,4637.3,4637.2,10.50967373]
[1757850643890,0.78010001,4637.3,4637.2,10.50967373]
[1757850645207,1.25800001,4637.3,4637.2,10.50967373]
[1757850645611,0.78010001,4637.3,4637.2,10.50967373]
[1757850646142,1e-08,4637.3,4637.2,10.50967373]
[1757850647210,0.75480001,4637.3,4637.2,10.50967373]
[1757850647414,0.29090001,4637.3,4637.2,10.50967373]
[1757850647813,0.29090001,4637.3,4637.2,12.54159728]
[1757850647814,1e-08,4637.3,4637.2,12.54159728]
[1757850648225,1e-08,4637.3,4637.2,12.07319728]
[1757850648643,1e-08,4637.3,4637.2,13.33359728]
[1757850649843,1e-08,4637.3,4637.2,12.56829728]
[1757850650036,0.29090001,4637.3,4637.2,12.56829728]
[1757850651339,0.75480001,4637.3,4637.2,12.56829728]
[1757850651535,0.75480001,4637.3,4637.2,8.97729728]
[1757850651720,0.75480001,4637.3,4637.2,12.56829728]
[1757850652445,1e-08,4637.3,4637.2,12.56829728]
[1757850653149,1e-08,4637.3,4637.2,12.88489728]
[1757850654883,1e-08,4637.3,4637.2,13.36579728]
[1757850655082,1e-08,4637.3,4637.2,13.81219728]
[1757850655671,1e-08,4637.3,4637.2,13.36579728]
[1757850657372,1e-08,4637.3,4637.2,12.88489728]
[1757850658856,1e-08,4637.3,4637.2,13.36579728]
[1757850660091,1e-08,4637.3,4637.2,12.88489728]
[1757850660517,1e-08,4637.3,4637.2,13.34619728]
[1757850660721,0.77570001,4637.3,4637.2,13.02859728]
[1757850661015,1.22930001,4637.3,4637.2,8.18529728]
[1757850661215,1.22930001,4637.3,4637.2,11.77529728]
[1757850661513,1.22930001,4637.3,4637.2,10.50867373]
[1757850663997,0.77570001,4637.3,4637.2,10.50867373]
[1757850665806,1.22930001,4637.3,4637.2,6.91867373]
[1757850666007,1.22930001,4637.3,4637.2,10.50867373]
[1757850666709,1.22930001,4637.3,4637.2,3.91867373]
[1757850666925,0.1072,4637.2,4637.1,0.001]
[1757850667298,1.3365,4637.2,4637.1,0.001]
[1757850670401,3.49297373,4637.2,4637.1,0.001]
[1757850672629,3.60117373,4637.2,4637.1,0.001]
[1757850674948,7.19117373,4637.2,4637.1,0.001]
[1757850675143,8.13822441,4637.2,4637.1,0.001]
[1757850677510,5.98175068,4637.2,4637.1,0.001]
[1757850677917,8.13822441,4637.2,4637.1,0.001]
[1757850679641,5.98175068,4637.2,4637.1,0.001]
[1757850680151,8.13822441,4637.2,4637.1,0.001]
[1757850680557,5.98175068,4637.2,4637.1,0.001]
[1757850680756,8.13822441,4637.2,4637.1,0.001]
[1757850681851,5.98175068,4637.2,4637.1,0.001]
[1757850682863,8.13822441,4637.2,4637.1,0.001]
[1757850683368,5.98175068,4637.2,4637.1,0.001]
[1757850683864,8.13822441,4637.2,4637.1,0.001]
[1757850686861,5.98175068,4637.2,4637.1,0.001]
[1757850687270,8.13822441,4637.2,4637.1,0.001]
[1757850688269,5.98175068,4637.2,4637.1,0.001]
[1757850688643,8.13822441,4637.2,4637.1,0.001]
[1757850696726,7.22332441,4637.2,4637.1,0.001]
[1757850697320,4.64425068,4637.2,4637.1,0.001]
[1757850697525,3.6972,4637.2,4637.1,0.001]
[1757850698691,0.1072,4637.2,4637.1,0.3149]
[1757850698871,3.6972,4637.2,4637.1,0.7662]
[1757850699267,0.1072,4637.2,4637.1,0.7662]
[1757850699502,0.1072,4637.2,4637.1,1.2207]
[1757850699503,3.6972,4637.2,4637.1,1.2207]
[1757850699704,3.59000001,4637.3,4637.2,2.15647373]
[1757850699869,1e-08,4637.3,4637.2,2.47037373]
[1757850700069,1e-08,4637.3,4637.2,3.37617373]
[1757850703070,1e-08,4637.3,4637.2,0.7652]
[1757850703401,1e-08,4637.3,4637.1,0.12307]
[1757850703402,0.84940001,4637.3,4637.1,0.001]
[1757850704392,0.10720001,4637.3,4637.1,0.001]
[1757850704593,0.10720001,4637.3,4637.2,0.3139]
[1757850704800,0.10720001,4637.3,4637.2,1.2197]
[1757850704999,0.10720001,4637.3,4637.2,0.7652]
[1757850705491,0.10720001,4637.3,4637.2,0.3139]
[1757850708508,0.10720001,4637.3,4637.2,1.1997]
[1757850708811,1e-08,4637.3,4637.2,3.35617373]
[1757850710089,1e-08,4637.3,4637.2,3.46337373]
[1757850710289,1e-08,4637.3,4637.2,3.48493846]
[1757850710486,1e-08,4637.3,4637.2,4.04918676]
[1757850711424,1e-08,4637.3,4637.2,7.63818676]
[1757850711587,1e-08,4637.3,4637.2,8.40862203]
[1757850711792,1e-08,4637.3,4637.2,11.40862203]
[1757850714433,1e-08,4637.3,4637.2,5.82792203]
[1757850714611,1e-08,4637.3,4637.2,5.74547373]
[1757850714612,0.72960001,4637.3,4637.2,5.74547373]
[1757850715431,1e-08,4637.3,4637.2,5.74547373]
[1757850716446,1e-08,4637.3,4637.2,6.04797373]
[1757850720923,1e-08,4637.3,4637.2,6.99887373]
[1757850721229,1e-08,4637.3,4637.2,7.10607373]
[1757850721416,1e-08,4637.3,4637.2,8.03243731]
[1757850722496,1e-08,4637.3,4637.2,7.57893731]
[1757850723020,1e-08,4637.3,4637.2,8.82443731]
[1757850723329,1e-08,4637.3,4637.2,11.82443731]
[1757850723698,1e-08,4637.3,4637.2,11.93163731]
[1757850725139,1e-08,4637.3,4637.2,11.88163731]
[1757850728821,1e-08,4637.3,4637.2,7.83913731]
[1757850729145,1e-08,4637.3,4637.2,10.92973731]
[1757850731646,0.29080001,4637.3,4637.2,9.72803731]
[1757850731837,0.72960001,4637.3,4637.2,9.72803731]
[1757850732039,0.72960001,4637.3,4637.2,8.80167373]
[1757850734016,1.19440001,4637.3,4637.2,5.80167373]
[1757850735254,1.19440001,4637.3,4637.2,3.6952]
[1757850735553,1.19440001,4637.3,4637.2,5.85167373]
[1757850736452,1.19440001,4637.3,4637.2,2.26367373]
[1757850736655,1.19440001,4637.3,4637.2,5.85167373]
[1757850737221,1.19440001,4637.3,4637.2,3.6952]
[1757850737620,1.19440001,4637.3,4637.2,5.85167373]
[1757850738027,0.72960001,4637.3,4637.2,5.85167373]
[1757850738636,3.00403724,4637.3,4637.2,0.1072]
[1757850738940,3.00403724,4637.3,4637.1,0.001]
[1757850738941,2.15647373,4637.2,4637.1,0.001]
[1757850739323,3.35967373,4637.2,4637.1,0.001]
[1757850739523,3.7074421,4637.2,4637.1,0.001]
[1757850742024,6.7074421,4637.2,4637.1,0.001]
[1757850742224,6.91318071,4637.2,4637.1,0.001]
[1757850744248,10.38176052,4637.2,4637.1,0.001]
[1757850749486,19.60678857,4637.2,4637.1,0.001]
[1757850752660,19.48776052,4637.2,4637.1,0.001]
[1757850753004,19.6066757,4637.2,4637.1,0.001]
[1757850756607,19.60660714,4637.2,4637.1,0.001]
[1757850760010,19.60860714,4637.2,4637.1,0.001]
[1757850760610,19.60867511,4637.2,4637.1,0.001]
[1757850764314,19.60883247,4637.2,4637.1,0.001]
[1757850766297,20.06653339,4637.2,4637.1,0.001]
[1757850766696,4.24293887,4636.2,4636.1,0.001]
[1757850766919,19.50793887,4636.2,4636.1,0.001]
[1757850767104,21.32510639,4636.2,4636.1,0.001]
[1757850767493,21.41145575,4636.2,4636.1,0.001]
[1757850767995,21.2923838,4636.2,4636.1,0.001]
[1757850768201,22.53733396,4636.2,4636.1,0.001]
[1757850768602,25.26448124,4636.2,4636.1,0.001]
[1757850768813,25.46330752,4636.2,4636.1,0.001]
[1757850770323,25.26448124,4636.2,4636.1,0.001]
[1757850774523,24.31098124,4636.2,4636.1,0.001]
[1757850774728,24.76128124,4636.2,4636.1,0.001]
[1757850775020,26.94469659,4636.2,4636.1,0.001]
[1757850777912,27.7165412,4636.2,4636.1,0.001]
[1757850778427,27.7165412,4636.2,4634.9,0.4983]
[1757850778428,3.4515904,4634.8,4634.7,0.001]
[1757850778627,11.6985904,4634.8,4634.7,0.001]
[1757850778819,11.81782208,4634.8,4634.7,0.001]
[1757850779701,11.90419175,4634.8,4634.7,0.001]
[1757850780006,13.58229302,4634.8,4634.7,0.001]
[1757850780215,13.58229302,4634.8,4634.7,0.2902]
[1757850781718,15.85129302,4634.8,4634.7,0.2902]
[1757850781913,13.58229302,4634.8,4634.7,0.2902]
[1757850783324,20.60229302,4634.8,4634.7,0.2902]
[1757850784558,17.01129302,4634.8,4634.7,0.2902]
[1757850784724,20.61529302,4634.8,4634.7,0.2902]
[1757850785726,17.01129302,4634.8,4634.7,0.2902]
[1757850786079,17.52396007,4634.8,4634.7,0.7403]
[1757850786437,17.52396007,4634.8,4634.7,0.2902]
[1757850787264,17.52396007,4634.8,4634.7,1.174]
[1757850787767,13.8335904,4634.8,4634.7,1.174]
[1757850787929,17.4365904,4634.8,4634.7,1.174]
[1757850789756,10.8335904,4634.8,4634.7,1.174]
[1757850789956,12.279,4634.8,4634.7,1.174]
[1757850790440,10.8335904,4634.8,4634.7,1.174]
[1757850790766,12.279,4634.8,4634.7,1.174]
[1757850792050,8.676,4634.8,4634.7,1.2917]
[1757850792260,10.623,4634.8,4634.7,1.2917]
[1757850792455,7.02,4634.8,4634.7,1.2917]
[1757850794461,0.1072,4634.9,4634.7,1.2917]
[1757850794666,0.1072,4635.2,4634.8,0.4337]
[1757850794867,5.75946655,4635.1,4634.8,0.8838]
[1757850795054,5.75946655,4635.1,4635.0,0.2892]
[1757850795256,3.602,4635.1,4635.0,0.2892]
[1757850795448,5.75945075,4635.1,4635.0,0.2892]
[1757850795652,2.1575904,4634.8,4634.7,0.001]
[1757850795981,5.7615904,4634.8,4634.7,0.001]
[1757850796156,5.7615904,4634.8,4634.7,0.3081]
[1757850796356,5.7635904,4634.8,4634.7,0.3081]
[1757850799082,3.606,4634.8,4634.7,0.3081]
[1757850799976,5.7635904,4634.8,4634.7,0.3081]
[1757850802261,5.7635904,4634.8,4634.7,0.001]
[1757850803362,6.9826904,4634.8,4634.7,0.001]
[1757850803889,5.7635904,4634.8,4634.7,0.001]
[1757850804095,6.0739904,4634.8,4634.7,0.001]
[1757850804596,5.7635904,4634.8,4634.7,0.001]
[1757850804798,6.0739904,4634.8,4634.7,0.001]
[1757850805298,5.7635904,4634.8,4634.7,0.001]
[1757850805470,3.606,4634.8,4634.7,0.3081]
[1757850805872,5.7635904,4634.8,4634.7,0.3081]
[1757850807567,5.7635904,4634.8,4634.7,0.001]
[1757850809388,5.7635904,4634.8,4634.7,0.3081]
[1757850809389,3.606,4634.8,4634.7,0.3081]
[1757850810101,5.7635904,4634.8,4634.7,0.3081]
[1757850810472,3.606,4634.8,4634.7,0.7435]
[1757850810677,3.602,4634.8,4634.7,0.7435]
[1757850811299,3.602,4634.8,4634.7,0.3081]
[1757850812404,0.002,4634.8,4634.7,3.33483695]
[1757850812581,3.602,4634.8,4634.7,1.72891875]
[1757850812782,0.002,4634.8,4634.7,1.72891875]
[1757850813102,0.002,4634.8,4634.7,3.8865557]
[1757850813305,0.002,4634.8,4634.7,1.72891875]
[1757850814616,0.002,4634.8,4634.7,1.1772]
[1757850814928,0.002,4634.8,4634.7,0.7435]
[1757850815124,0.002,4634.8,4634.7,0.3081]
[1757850822146,0.002,4634.8,4634.7,0.001]
[1757850823114,0.002,4634.8,4634.7,0.3081]
[1757850823510,0.002,4634.8,4634.7,0.99038716]
[1757850824340,0.002,4634.8,4634.7,0.55498716]
[1757850824658,0.002,4634.8,4634.7,0.99038716]
[1757850826624,1.2211,4634.8,4634.7,0.001]
[1757850827316,0.002,4634.8,4634.7,0.3009]
[1757850827517,0.002,4634.8,4634.7,3.32543695]
[1757850827718,0.002,4634.8,4634.7,3.89778711]
[1757850828949,0.002,4634.8,4634.7,0.5517738]
[1757850829155,0.002,4634.8,4634.7,2.45853695]
[1757850830075,0.2976,4634.8,4634.7,0.001]
[1757850830241,1.253,4634.8,4634.7,0.001]
[1757850831175,0.002,4634.8,4634.7,2.45853695]
[1757850834903,0.002,4634.8,4634.7,3.36151331]
[1757850835073,0.002,4634.8,4634.7,4.2137353]
[1757850835399,0.002,4634.8,4634.7,7.3760353]
[1757850835542,0.002,4634.8,4634.7,6.90675894]
[1757850837545,0.002,4634.8,4634.7,7.78815894]
[1757850838881,0.002,4634.8,4634.7,7.35445894]
[1757850840382,0.002,4634.8,4634.7,7.89535894]
[1757850842653,0.002,4634.8,4634.7,8.68735894]
[1757850842860,0.002,4634.8,4634.7,11.68735894]
[1757850843275,0.002,4634.8,4634.7,10.80595894]
[1757850843458,0.002,4634.8,4634.7,10.50605894]
[1757850843659,0.002,4634.8,4634.7,10.80925894]
[1757850846797,0.7778,4634.8,4634.7,9.71105894]
[1757850847003,1.262,4634.8,4634.7,9.71105894]
[1757850847172,0.3165,4634.8,4634.7,6.11805894]
[1757850847369,0.3165,4634.8,4634.7,9.71105894]
[1757850847572,0.002,4634.8,4634.7,10.01425894]
[1757850850192,0.8007,4634.8,4634.7,6.11805894]
[1757850850386,1.262,4634.8,4634.7,9.71105894]
[1757850850582,1.262,4634.8,4634.7,3.001]
[1757850850802,1.262,4634.8,4634.7,6.594]
[1757850851374,1.262,4634.8,4634.7,3.001]
[1757850851575,1.262,4634.8,4634.7,0.001]
[1757850851892,1.262,4634.8,4634.7,3.594]
[1757850853612,1.262,4634.8,4634.7,0.001]
[1757850855100,1.262,4634.8,4634.7,2.15863695]
[1757850860607,1.262,4634.8,4634.7,0.001]
[1757850863828,1.262,4634.8,4634.7,2.15863695]
[1757850864735,0.8007,4634.8,4634.7,2.15863695]
[1757850864937,1.2298,4634.8,4634.7,2.15863695]
[1757850865842,1.3635,4634.8,4634.7,0.001]
[1757850866046,3.5210904,4634.8,4634.7,0.001]
[1757850866338,0.9344,4634.8,4634.7,0.001]
[1757850866539,0.002,4634.8,4634.7,0.2882]
[1757850866939,0.002,4634.8,4634.7,0.001]
[1757850867146,0.2919,4634.8,4634.7,0.001]
[1757850867913,1.1895,4634.8,4634.7,0.001]
[1757850869229,1.1895,4634.8,4634.7,2.15863695]
[1757850869635,1.1895,4634.8,4634.7,0.001]
[1757850870528,0.2919,4634.8,4634.7,0.001]
[1757850871259,0.721,4634.8,4634.7,0.001]
[1757850871919,1.1895,4634.8,4634.7,0.001]
[1757850872314,0.89007,4634.8,4634.7,0.001]
[1757850872651,1.31917,4634.8,4634.7,0.001]
[1757850872830,3.4767604,4634.8,4634.7,0.001]
[1757850873243,1.31917,4634.8,4634.7,0.001]
[1757850873645,3.4767604,4634.8,4634.7,0.001]
[1757850875947,6.4767604,4634.8,4634.7,0.001]
[1757850876521,6.56311609,4634.8,4634.7,0.001]
[1757850876726,6.68256476,4634.8,4634.7,0.001]
[1757850876922,6.56311609,4634.8,4634.7,0.001]
[1757850879833,10.15511609,4634.8,4634.7,0.001]
[1757850880967,10.27450416,4634.8,4634.7,0.001]
[1757850882200,10.15511609,4634.8,4634.7,0.001]
[1757850882498,10.27446709,4634.8,4634.7,0.001]
[1757850883289,10.15511609,4634.8,4634.7,0.001]
[1757850883990,10.2744755,4634.8,4634.7,0.001]
[1757850884193,17.17511609,4634.8,4634.7,0.001]
[1757850886116,17.29444662,4634.8,4634.7,0.001]
[1757850886404,18.58844662,4634.8,4634.7,0.001]
[1757850886578,19.38044662,4634.8,4634.7,0.001]
[1757850888181,19.57922487,4634.8,4634.7,0.001]
[1757850892021,19.57916976,4634.8,4634.7,0.001]
[1757850892429,19.57916976,4634.8,4633.8,1e-08]
[1757850892430,1.294,4634.0,4633.8,1e-08]
[1757850892630,11.70100945,4633.9,4633.8,1e-08]
[1757850892819,13.03070024,4633.9,4633.8,1e-08]
[1757850893227,13.11708484,4633.9,4633.8,1e-08]
[1757850893414,21.59891169,4633.9,4633.8,1e-08]
[1757850896041,22.03121244,4633.9,4633.8,1e-08]
[1757850898329,22.82321244,4633.9,4633.8,1e-08]
[1757850898717,19.23021244,4633.9,4633.8,1e-08]
[1757850898912,22.82321244,4633.9,4633.8,1e-08]
[1757850899432,19.23021244,4633.9,4633.8,1e-08]
[1757850899631,22.36451244,4633.9,4633.8,1e-08]
[1757850900007,22.82321244,4633.9,4633.8,1e-08]
[1757850900544,20.82081244,4633.9,4633.8,1e-08]
[1757850901035,22.03121244,4633.9,4633.8,1e-08]
[1757850901249,18.43821244,4633.9,4633.8,1e-08]
[1757850901408,21.56951244,4633.9,4633.8,1e-08]
[1757850901736,21.11081244,4633.9,4633.8,1e-08]
[1757850902638,21.56951244,4633.9,4633.8,1e-08]
[1757850902825,22.03121244,4633.9,4633.8,1e-08]
[1757850903230,18.43821244,4633.9,4633.8,1e-08]
[1757850903543,22.03121244,4633.9,4633.8,1e-08]
[1757850906447,18.43821244,4633.9,4633.8,1e-08]
[1757850906648,22.03121244,4633.9,4633.8,1e-08]
[1757850910347,21.01987962,4633.9,4633.8,1e-08]
[1757850910787,21.30987962,4633.9,4633.8,1e-08]
[1757850910923,21.76857962,4633.9,4633.8,1e-08]
[1757850911948,18.17557962,4633.9,4633.8,1e-08]
[1757850912248,21.76857962,4633.9,4633.8,1e-08]
[1757850914430,22.23027962,4633.9,4633.8,1e-08]
[1757850914767,22.23227962,4633.9,4633.8,1e-08]
[1757850915523,18.18057962,4633.9,4633.8,1e-08]
[1757850915728,22.23227962,4633.9,4633.8,1e-08]
[1757850916244,22.69152109,4633.9,4633.8,1e-08]
[1757850917458,22.69184596,4633.9,4633.8,1e-08]
[1757850917965,19.09884596,4633.9,4633.8,1e-08]
[1757850918263,22.69184596,4633.9,4633.8,1e-08]
[1757850919690,16.59480958,4633.9,4633.8,0.28770001]
[1757850919974,20.18880958,4633.9,4633.8,0.28770001]
[1757850920781,20.18880958,4633.9,4633.8,1e-08]
[1757850921161,14.93880958,4633.9,4633.8,1e-08]
[1757850921346,20.18880958,4633.9,4633.8,1e-08]
[1757850921750,14.93880958,4633.9,4633.8,1e-08]
[1757850922179,20.18880958,4633.9,4633.8,1e-08]
[1757850922754,14.93880958,4633.9,4633.8,1e-08]
[1757850922954,20.18880958,4633.9,4633.8,1e-08]
[1757850923152,22.71250958,4633.9,4633.8,1e-08]
[1757850925085,22.71267621,4633.9,4633.8,1e-08]
[1757850927967,22.71288389,4633.9,4633.8,1e-08]
[1757850928866,22.71288481,4633.9,4633.8,1e-08]
[1757850930185,23.05558481,4633.9,4633.8,1e-08]
[1757850930385,23.48818481,4633.9,4633.8,1e-08]
[1757850932685,23.48817211,4633.9,4633.8,1e-08]
[1757850933566,7.35125602,4633.8,4633.3,0.001]
[1757850933766,11.03540556,4633.8,4633.3,0.001]
[1757850934069,12.21130556,4633.8,4633.3,0.001]
[1757850934254,11.44495831,4633.8,4633.3,0.001]
[1757850938080,7.24424232,4633.4,4633.3,0.001]
[1757850938289,12.39689283,4633.4,4633.3,0.001]
[1757850938479,12.8561343,4633.4,4633.3,0.309]
[1757850938680,12.8561343,4633.4,4633.3,0.001]
[1757850938920,13.1449343,4633.4,4633.3,0.001]
[1757850939122,13.5775343,4633.4,4633.3,0.001]
[1757850939323,14.5737343,4633.4,4633.3,0.001]
[1757850940307,9.8048343,4633.4,4633.3,0.001]
[1757850940512,13.3978343,4633.4,4633.3,0.001]
[1757850941724,9.8048343,4633.4,4633.3,0.309]
[1757850941925,13.3978343,4633.4,4633.3,0.309]
[1757850942926,12.6058343,4633.4,4633.3,0.309]
[1757850943135,14.2628343,4633.4,4633.3,0.309]
[1757850944114,21.28237179,4633.4,4633.3,0.309]
[1757850944332,16.03237179,4633.4,4633.3,0.309]
[1757850944548,21.28237179,4633.4,4633.3,0.309]
[1757850947702,16.03237179,4633.4,4633.3,0.309]
[1757850947942,18.74813027,4633.4,4633.3,0.771]
[1757850948312,18.74813027,4633.4,4633.3,0.309]
[1757850950653,18.74813027,4633.4,4633.3,0.001]
[1757850951058,20.35033027,4633.4,4633.3,0.001]
[1757850951225,22.90212712,4633.4,4633.3,0.001]
[1757850952561,15.88212712,4633.4,4633.3,0.001]
[1757850953360,14.58812712,4633.4,4633.3,0.001]
[1757850953654,14.61362712,4633.4,4633.3,0.001]
[1757850954255,11.02062712,4633.4,4633.3,0.001]
[1757850954441,14.61362712,4633.4,4633.3,0.001]
[1757850957164,15.83202712,4633.4,4633.3,0.001]
[1757850959845,11.02062712,4633.4,4633.3,0.001]
[1757850960049,14.61362712,4633.4,4633.3,0.001]
[1757850960459,14.91122712,4633.4,4633.3,0.001]
[1757850961356,15.83202712,4633.4,4633.3,0.001]
[1757850961562,14.91122712,4633.4,4633.3,0.001]
[1757850961762,14.61362712,4633.4,4633.3,0.001]
[1757850963648,11.02062712,4633.4,4633.3,0.2963]
[1757850963946,11.26927103,4633.4,4633.3,0.2963]
[1757850964146,6.77664281,4633.4,4633.3,0.001]
[1757850964349,13.58211283,4633.4,4633.3,0.001]
[1757850964549,14.04188461,4633.4,4633.3,0.001]
[1757850964876,14.24140791,4633.4,4633.3,0.001]
[1757850965070,15.88156599,4633.4,4633.3,0.001]
[1757850966148,22.90156599,4633.4,4633.3,0.001]
[1757850967781,18.38776599,4633.4,4633.3,0.001]
[1757850967963,21.97976599,4633.4,4633.3,0.001]
[1757850968499,18.38776599,4633.4,4633.3,0.001]
[1757850968686,21.97976599,4633.4,4633.3,0.001]
[1757850968981,21.68216599,4633.4,4633.3,0.001]
[1757850969854,18.09016599,4633.4,4633.3,0.001]
[1757850970054,21.68216599,4633.4,4633.3,0.001]
[1757850970758,21.97976599,4633.4,4633.3,0.001]
[1757850970956,22.43956599,4633.4,4633.3,0.001]
[1757850971181,21.68216599,4633.4,4633.3,0.001]
[1757850971487,22.90056599,4633.4,4633.3,0.001]
[1757850972771,23.69256599,4633.4,4633.3,0.001]
[1757850973564,23.69251877,4633.4,4633.3,0.001]
[1757850973962,20.10051877,4633.4,4633.3,0.001]
[1757850974267,23.69251877,4633.4,4633.3,0.001]
[1757850974682,20.10051877,4633.4,4633.3,0.001]
[1757850974973,23.69251877,4633.4,4633.3,0.001]
[1757850978673,20.10051877,4633.4,4633.3,0.001]
[1757850978877,23.69251877,4633.4,4633.3,0.001]
[1757850979076,18.88211877,4633.4,4633.3,0.001]
[1757850979374,22.47411877,4633.4,4633.3,0.001]
[1757850980185,22.47411877,4633.4,4633.3,0.3087]
[1757850980567,18.09011877,4633.4,4633.3,0.3087]
[1757850980769,21.68211877,4633.4,4633.3,0.3087]
[1757850982272,22.45741877,4633.4,4633.3,0.001]
[1757850982686,22.90811877,4633.4,4633.3,0.001]
[1757850984800,19.31611877,4633.4,4633.3,0.001]
[1757850984992,22.90809677,4633.4,4633.3,0.001]
[1757850986673,23.70009677,4633.4,4633.3,0.001]
[1757850987180,24.27404862,4633.4,4633.3,0.001]
[1757850988802,24.27390948,4633.4,4633.3,0.001]
[1757850990235,19.45590948,4633.4,4633.3,0.001]
[1757850990394,21.68195763,4633.4,4633.3,0.3087]
[1757850992640,21.68191367,4633.4,4633.3,0.3087]
[1757850994294,18.08991367,4633.4,4633.3,0.001]
[1757850994530,21.68191367,4633.4,4633.3,0.001]
[1757850995322,22.90791367,4633.4,4633.3,0.001]
[1757850995520,24.27386552,4633.4,4633.3,0.001]
[1757850997444,23.69991367,4633.4,4633.3,0.001]
[1757850997643,20.10791367,4633.4,4633.3,0.001]
[1757850997832,23.69991367,4633.4,4633.3,0.001]
[1757851000119,22.47391367,4633.4,4633.3,0.001]
[1757851000322,23.04786552,4633.4,4633.3,0.001]
[1757851000824,23.35646552,4633.4,4633.3,0.001]
[1757851001220,23.82316552,4633.4,4633.3,0.001]
[1757851001746,23.24921367,4633.4,4633.3,0.001]
[1757851004356,23.24821367,4633.4,4633.3,0.001]
[1757851005170,22.78151367,4633.4,4633.3,0.001]
[1757851007067,23.68381367,4633.4,4633.3,0.001]
[1757851008175,24.25776552,4633.4,4633.3,0.001]
[1757851009127,20.66676552,4633.4,4633.3,0.001]
[1757851009329,24.25776552,4633.4,4633.3,0.001]
[1757851011177,22.78151367,4633.4,4633.3,0.001]
[1757851011364,23.35543188,4633.4,4633.3,0.001]
[1757851011696,23.04683188,4633.4,4633.3,0.001]
[1757851011993,18.88188003,4633.4,4633.3,0.001]
[1757851012195,22.47288003,4633.4,4633.3,0.001]
[1757851012406,23.04683188,4633.4,4633.3,0.001]
[1757851013058,23.35313188,4633.4,4633.3,0.001]
[1757851013488,24.25543188,4633.4,4633.3,0.001]
[1757851015589,20.66443188,4633.4,4633.3,0.001]
[1757851015767,24.25543188,4633.4,4633.3,0.001]
[1757851018792,23.35313188,4633.4,4633.3,0.001]
[1757851018992,23.35313472,4633.4,4633.3,0.001]
[1757851019889,23.04683472,4633.4,4633.3,0.001]
[1757851020595,23.35523472,4633.4,4633.3,0.001]
[1757851020772,23.80633472,4633.4,4633.3,0.001]
[1757851021587,23.35523472,4633.4,4633.3,0.001]
[1757851022091,23.04683472,4633.4,4633.3,0.001]
[1757851023461,24.26923472,4633.4,4633.3,0.001]
[1757851024286,23.69528287,4633.4,4633.3,0.001]
[1757851027613,18.88188287,4633.4,4633.3,0.001]
[1757851027915,22.47188287,4633.4,4633.3,0.001]
[1757851029115,23.69428287,4633.4,4633.3,0.001]
[1757851029268,23.69430634,4633.4,4633.3,0.001]
[1757851030106,20.10430634,4633.4,4633.3,0.001]
[1757851030306,23.69430634,4633.4,4633.3,0.001]
[1757851030816,23.23140634,4633.4,4633.3,0.001]
[1757851030983,19.19030634,4633.4,4633.3,0.001]
[1757851031315,22.47190634,4633.4,4633.3,0.001]
[1757851032994,22.47190219,4633.4,4633.3,0.001]
[1757851033323,23.23140219,4633.4,4633.3,0.001]
[1757851034426,22.78030219,4633.4,4633.3,0.001]
[1757851035191,19.19030219,4633.4,4633.3,0.001]
[1757851035523,22.78030219,4633.4,4633.3,0.001]
[1757851035988,23.25450219,4633.4,4633.3,0.001]
[1757851036626,23.71220219,4633.4,4633.3,0.001]
[1757851036922,20.12217676,4633.4,4633.3,0.001]
[1757851037100,23.71217676,4633.4,4633.3,0.001]
[1757851040034,22.78027676,4633.4,4633.3,0.001]
[1757851040750,22.47187676,4633.4,4633.3,0.001]
[1757851041627,22.76337676,4633.4,4633.3,0.001]
[1757851041803,19.17337676,4633.4,4633.3,0.001]
[1757851042012,23.69527676,4633.4,4633.3,0.001]
[1757851043414,20.10527676,4633.4,4633.3,0.001]
[1757851043615,23.69527676,4633.4,4633.3,0.001]
[1757851045239,2.086,4633.0,4632.3,0.001]
[1757851045403,6.45270822,4632.4,4632.3,0.001]
[1757851045732,11.81933494,4632.4,4632.3,0.001]
[1757851045936,12.27910672,4632.4,4632.3,0.001]
[1757851046436,12.75110672,4632.4,4632.3,0.001]
[1757851046732,13.50030672,4632.4,4632.3,0.001]
[1757851046920,14.65592138,4632.4,4632.3,0.001]
[1757851047260,14.36442138,4632.4,4632.3,0.001]